fUST/lending_fUST_20250722
["ID","MTS","AMOUNT","RATE_DAILY","PERIOD"]
[374035799,1753188651821,-460.0,0.00018293,2]
[374035801,1753188651830,-540.07,0.00018293,2]
[374035803,1753188651840,-460.0,0.00018293,2]
[374035805,1753188651849,-460.0,0.00018293,2]
[374035807,1753188651858,-460.0,0.00018293,2]
[374035808,1753188651868,-460.0,0.00018293,2]
[374035819,1753188651957,-460.0,0.00018293,2]
[374035822,1753188651980,-460.0,0.00018293,2]
[374035824,1753188651990,-460.0,0.00018293,2]
[374035826,1753188651999,-460.0,0.00018293,2]
[374035827,1753188652008,-460.0,0.00018293,2]
[374035829,1753188652018,-460.0,0.00018293,2]
[374035831,1753188652027,-460.0,0.00018293,2]
[374035833,1753188652037,-460.0,0.00018293,2]
[374035835,1753188652046,-460.0,0.00018293,2]
[374035837,1753188652055,-460.0,0.00018293,2]
[374035839,1753188652064,-460.0,0.00018293,2]
[374035841,1753188652074,-460.0,0.00018293,2]
[374035843,1753188652083,-460.0,0.00018293,2]
[374035845,1753188652092,-460.0,0.00018293,2]
[374035847,1753188652102,-460.0,0.00018294,2]
[374035849,1753188652113,-1103.13,0.00018294,2]
[374035851,1753188652122,-460.0,0.00018294,2]
[374035853,1753188652132,-460.0,0.00018294,2]
[374035855,1753188652142,-490.09,0.00018294,2]
[374035857,1753188652151,-460.0,0.00018294,2]
[374035859,1753188652160,-460.0,0.00018294,2]
[374035861,1753188652170,-460.0,0.00018294,2]
[374035863,1753188652180,-460.0,0.00018294,2]
[374035865,1753188652189,-460.0,0.00018294,2]
[374035867,1753188652199,-1181.98,0.00018294,2]
[374035869,1753188652208,-460.0,0.00018294,2]
[374035871,1753188652217,-160.0,0.00018347,2]
[374035873,1753188652226,-851.3900261,0.00018363,2]
[374035875,1753188652236,-460.0,0.00018394,2]
[374035877,1753188652245,-460.0,0.00018394,2]
[374035879,1753188652255,-460.0,0.00018394,2]
[374035881,1753188652264,-460.0,0.00018394,2]
[374035883,1753188652274,-460.0,0.00018394,2]
[374035885,1753188652283,-460.0,0.00018394,2]
[374035886,1753188652292,-460.0,0.00018394,2]
[374035888,1753188652302,-460.0,0.00018394,2]
[374035890,1753188652311,-460.0,0.00018394,2]
[374035892,1753188652320,-460.0,0.00018394,2]
[374035894,1753188652329,-460.0,0.00018394,2]
[374035896,1753188652339,-465.7,0.00018394,2]
[374035898,1753188652349,-460.0,0.00018394,2]
[374035900,1753188652358,-913.28,0.00018394,2]
[374035902,1753188652369,-460.0,0.00018394,2]
[374035904,1753188652378,-460.0,0.00018394,2]
[374035906,1753188652388,-7033.93,0.00018395,2]
[374035908,1753188652397,-460.0,0.00018395,2]
[374035910,1753188652406,-460.0,0.00018396,2]
[374035912,1753188652416,-638.88,0.00018396,2]
[374035914,1753188652425,-460.0,0.00018397,2]
[374035916,1753188652434,-1226.54,0.00018397,2]
[374035918,1753188652443,-460.0,0.00018397,2]
[374035920,1753188652453,-460.0,0.00018397,2]
[374035921,1753188652462,-460.0,0.00018397,2]
[374035923,1753188652471,-1347.59110799,0.00018452,2]
[374035925,1753188652481,-565.13,0.00018566,2]
[374035927,1753188652490,-460.0,0.00018566,2]
[374035929,1753188652499,-505.2,0.00018566,2]
[374035931,1753188652509,-460.0,0.00018566,2]
[374035933,1753188652519,-460.0,0.00018566,2]
[374035935,1753188652528,-460.0,0.00018566,2]
[374035937,1753188652537,-460.0,0.00018566,2]
[374035939,1753188652547,-460.0,0.00018566,2]
[374035941,1753188652556,-460.0,0.00018566,2]
[374035943,1753188652566,-460.0,0.00018566,2]
[374035945,1753188652575,-460.0,0.00018566,2]
[374035947,1753188652585,-460.0,0.00018567,2]
[374035949,1753188652594,-460.0,0.00018567,2]
[374035951,1753188652604,-460.0,0.00018567,2]
[374035953,1753188652613,-460.0,0.00018567,2]
[374035955,1753188652622,-460.0,0.00018567,2]
[374035957,1753188652631,-460.0,0.00018567,2]
[374035959,1753188652640,-460.0,0.00018567,2]
[374035961,1753188652650,-460.0,0.00018567,2]
[374035963,1753188652659,-460.0,0.00018567,2]
[374035965,1753188652668,-460.0,0.00018567,2]
[374035967,1753188652678,-460.0,0.00018567,2]
[374035969,1753188652687,-173.99,0.00018567,2]
[374035971,1753188652697,-502.02656241,0.00018567,2]
[374035973,1753188652706,-460.0,0.00018567,2]
[374035975,1753188652715,-460.0,0.00018567,2]
[374035977,1753188652725,-460.0,0.00018567,2]
[374035979,1753188652735,-460.0,0.00018567,2]
[374035981,1753188652745,-460.0,0.00018568,2]
[374035983,1753188652755,-1103.13,0.00018568,2]
[374035985,1753188652764,-460.0,0.00018568,2]
[374035986,1753188652773,-460.0,0.00018568,2]
[374035987,1753188652783,-490.09,0.00018568,2]
[374035988,1753188652792,-460.0,0.00018568,2]
[374035989,1753188652801,-460.0,0.00018568,2]
[374035990,1753188652810,-185.14,0.00018568,2]
[374035991,1753188652820,-460.0,0.00018568,2]
[374035992,1753188652829,-460.0,0.00018568,2]
[374035993,1753188652839,-1181.98,0.00018568,2]
[374035994,1753188652848,-460.0,0.00018568,2]
[374035995,1753188652858,-460.0,0.00018668,2]
[374035996,1753188652869,-460.0,0.00018668,2]
[374035997,1753188652879,-460.0,0.00018668,2]
[374035998,1753188652888,-460.0,0.00018668,2]
[374035999,1753188652898,-460.0,0.00018668,2]
[374036000,1753188652907,-460.0,0.00018668,2]
[374036001,1753188652917,-460.0,0.00018668,2]
[374036002,1753188652927,-460.0,0.00018668,2]
[374036003,1753188652937,-465.7,0.00018668,2]
[374036004,1753188652946,-460.0,0.00018668,2]
[374036005,1753188652955,-913.28,0.00018668,2]
[374036006,1753188652965,-251.21080644,0.00018668,2]
[374036007,1753188652978,-460.0,0.00018668,2]
[374036008,1753188652988,-7033.93,0.00018669,2]
[374036009,1753188652998,-460.0,0.00018669,2]
[374036010,1753188653008,-460.0,0.0001867,2]
[374036011,1753188653019,-638.88,0.0001867,2]
[374036012,1753188653029,-460.0,0.00018671,2]
[374036013,1753188653041,-1226.54,0.00018671,2]
[374036014,1753188653051,-460.0,0.00018671,2]
[374036015,1753188653061,-460.0,0.00018671,2]
[374036016,1753188653071,-460.0,0.00018671,2]
[374036017,1753188653081,-1347.59110799,0.00018728,2]
[374036018,1753188653091,-565.13,0.0001884,2]
[374036019,1753188653100,-460.0,0.0001884,2]
[374036020,1753188653110,-505.2,0.0001884,2]
[374036021,1753188653122,-460.0,0.0001884,2]
[374036022,1753188653134,-460.0,0.0001884,2]
[374036023,1753188653144,-460.0,0.0001884,2]
[374036024,1753188653155,-460.0,0.0001884,2]
[374036025,1753188653165,-460.0,0.0001884,2]
[374036026,1753188653175,-460.0,0.0001884,2]
[374036027,1753188653185,-460.0,0.0001884,2]
[374036028,1753188653195,-197.68863758,0.00018841,2]
[374036029,1753188653206,-460.0,0.00018841,2]
[374036030,1753188653216,-460.0,0.00018841,2]
[374036031,1753188653226,-460.0,0.00018841,2]
[374036032,1753188653236,-460.0,0.00018841,2]
[374036033,1753188653246,-460.0,0.00018841,2]
[374036034,1753188653257,-460.0,0.00018841,2]
[374036035,1753188653266,-460.0,0.00018841,2]
[374036036,1753188653276,-460.0,0.00018841,2]
[374036037,1753188653285,-460.0,0.00018841,2]
[374036038,1753188653295,-460.0,0.00018841,2]
[374036039,1753188653304,-460.0,0.00018841,2]
[374036040,1753188653314,-460.0,0.00018841,2]
[374036041,1753188653323,-460.0,0.00018841,2]
[374036042,1753188653332,-460.0,0.00018842,2]
[374036043,1753188653342,-1103.13,0.00018842,2]
[374036044,1753188653351,-460.0,0.00018842,2]
[374036045,1753188653361,-490.09,0.00018842,2]
[374036046,1753188653373,-460.0,0.00018842,2]
[374036047,1753188653382,-460.0,0.00018842,2]
[374036048,1753188653392,-851.3900261,0.00018842,2]
[374036049,1753188653401,-460.0,0.00018842,2]
[374036050,1753188653411,-460.0,0.00018842,2]
[374036051,1753188653419,-1181.98,0.00018842,2]
[374036052,1753188653429,-460.0,0.00018842,2]
[374036053,1753188653438,-400.0,0.00018895,2]
[374036054,1753188653448,-947.340598,0.000189,2]
[374036055,1753188653457,-460.0,0.00018942,2]
[374036056,1753188653466,-460.0,0.00018942,2]
[374036057,1753188653476,-460.0,0.00018942,2]
[374036058,1753188653485,-460.0,0.00018942,2]
[374036059,1753188653494,-460.0,0.00018942,2]
[374036060,1753188653504,-460.0,0.00018942,2]
[374036061,1753188653513,-460.0,0.00018942,2]
[374036062,1753188653522,-460.0,0.00018942,2]
[374036064,1753188653532,-465.7,0.00018942,2]
[374036066,1753188653541,-460.0,0.00018942,2]
[374036068,1753188653550,-913.28,0.00018942,2]
[374036070,1753188653559,-460.0,0.00018942,2]
[374036072,1753188653568,-7033.93,0.00018943,2]
[374036074,1753188653577,-460.0,0.00018943,2]
[374036076,1753188653586,-460.0,0.00018944,2]
[374036078,1753188653595,-638.88,0.00018944,2]
[374036080,1753188653604,-460.0,0.00018945,2]
[374036082,1753188653615,-1226.54,0.00018945,2]
[374036084,1753188653625,-460.0,0.00018945,2]
[374036086,1753188653634,-460.0,0.00018945,2]
[374036088,1753188653644,-460.0,0.00018945,2]
[374036089,1753188653653,-1347.59110799,0.00019003,2]
[374036091,1753188653663,-160.0,0.00019067,2]
[374036093,1753188653672,-12619.94447631,0.00019068,2]
[374036095,1753188653683,-160.0,0.00019068,2]
[374036097,1753188653692,-214.6393183,0.00019068,2]
[374036099,1753188653701,-160.0,0.00019068,2]
[374036101,1753188653711,-231.06963584,0.00019068,2]
[374036103,1753188653720,-160.0,0.00019068,2]
[374036105,1753188653729,-839.90542673,0.00019068,2]
[374036107,1753188653738,-476.60259688,0.00019068,2]
[374036109,1753188653747,-160.0,0.00019068,2]
[374036111,1753188653756,-215.80012421,0.00019068,2]
[374036113,1753188653765,-160.0,0.00019068,2]
[374036115,1753188653775,-160.0,0.00019068,2]
[374036117,1753188653784,-565.13,0.00019114,2]
[374036119,1753188653793,-518.61,0.00019114,2]
[374036121,1753188653802,-505.2,0.00019114,2]
[374036123,1753188653812,-460.0,0.00019114,2]
[374036125,1753188653821,-460.0,0.00019114,2]
[374036127,1753188653830,-460.0,0.00019114,2]
[374036129,1753188653839,-460.0,0.00019114,2]
[374036131,1753188653849,-460.0,0.00019114,2]
[374036133,1753188653858,-460.0,0.00019114,2]
[374036135,1753188653869,-460.0,0.00019114,2]
[374036137,1753188653879,-331.82757342,0.00019115,2]
[374036139,1753188653888,-460.0,0.00019115,2]
[374036141,1753188653897,-460.0,0.00019115,2]
[374036143,1753188653906,-460.0,0.00019115,2]
[374036145,1753188653915,-460.0,0.00019115,2]
[374036147,1753188653924,-460.0,0.00019115,2]
[374036149,1753188653934,-460.0,0.00019115,2]
[374036151,1753188653943,-460.0,0.00019115,2]
[374036153,1753188653953,-460.0,0.00019115,2]
[374036155,1753188653962,-460.0,0.00019115,2]
[374036157,1753188653975,-460.0,0.00019115,2]
[374036159,1753188653985,-460.0,0.00019115,2]
[374036161,1753188653994,-460.0,0.00019115,2]
[374036163,1753188654004,-527.42197876,0.00019116,2]
[374036165,1753188654013,-1103.13,0.00019116,2]
[374036167,1753188654023,-274.68,0.00019116,2]
[374036169,1753188654032,-490.09,0.00019116,2]
[374036171,1753188654041,-460.0,0.00019116,2]
[374036173,1753188654050,-460.0,0.00019116,2]
[374036175,1753188654060,-460.0,0.00019116,2]
[374036177,1753188654069,-460.0,0.00019116,2]
[374036179,1753188654078,-1181.98,0.00019116,2]
[374036181,1753188654087,-666.0,0.00019178,2]
[374036183,1753188654096,-177.276587,0.00019178,2]
[374036184,1753188654105,-460.0,0.00019216,2]
[374036186,1753188654116,-460.0,0.00019216,2]
[374036188,1753188654126,-460.0,0.00019216,2]
[374036191,1753188654136,-460.0,0.00019216,2]
[374036201,1753188654228,-460.0,0.00019216,2]
[374036203,1753188654238,-460.0,0.00019216,2]
[374036205,1753188654247,-460.0,0.00019216,2]
[374036208,1753188654257,-465.7,0.00019216,2]
[374036209,1753188654266,-460.0,0.00019216,2]
[374036211,1753188654276,-913.28,0.00019216,2]
[374036213,1753188654285,-460.0,0.00019216,2]
[374036215,1753188654294,-7033.93,0.00019217,2]
[374036217,1753188654304,-460.0,0.00019217,2]
[374036219,1753188654313,-460.0,0.00019218,2]
[374036221,1753188654322,-638.88,0.00019218,2]
[374036223,1753188654332,-460.0,0.00019219,2]
[374036225,1753188654341,-1226.54,0.00019219,2]
[374036227,1753188654350,-460.0,0.00019219,2]
[374036229,1753188654360,-460.0,0.00019219,2]
[374036231,1753188654370,-460.0,0.00019219,2]
[374036233,1753188654379,-1347.59110799,0.00019279,2]
[374036235,1753188654389,-100000.0,0.00019329,2]
[374036237,1753188654398,-500.0,0.00019373,2]
[374036240,1753188654408,-565.13,0.00019388,2]
[374036241,1753188654417,-505.2,0.00019388,2]
[374036244,1753188654426,-258.97464754,0.00019388,2]
[374036245,1753188654436,-460.0,0.00019388,2]
[374036247,1753188654445,-460.0,0.00019388,2]
[374036250,1753188654455,-538.37,0.00019388,2]
[374036251,1753188654464,-460.0,0.00019388,2]
[374036254,1753188654474,-460.0,0.00019388,2]
[374036255,1753188654483,-152.19,0.00019389,2]
[374036257,1753188654493,-543.09,0.00019389,2]
[374036259,1753188654502,-460.0,0.00019389,2]
[374036261,1753188654512,-460.0,0.00019389,2]
[374036263,1753188654521,-460.0,0.00019389,2]
[374036265,1753188654531,-460.0,0.00019389,2]
[374036267,1753188654541,-460.0,0.00019389,2]
[374036270,1753188654551,-460.0,0.00019389,2]
[374036272,1753188654560,-460.0,0.00019389,2]
[374036274,1753188654570,-460.0,0.00019389,2]
[374036275,1753188654580,-460.0,0.00019389,2]
[374036277,1753188654589,-516.46,0.00019389,2]
[374036279,1753188654599,-1103.13,0.0001939,2]
[374036281,1753188654608,-490.09,0.0001939,2]
[374036284,1753188654621,-460.0,0.0001939,2]
[374036286,1753188654631,-460.0,0.0001939,2]
[374036287,1753188654640,-460.0,0.0001939,2]
[374036289,1753188654650,-330.93105098,0.0001939,2]
[374036292,1753188654660,-1181.98,0.0001939,2]
[374036294,1753188654670,-460.0,0.0001949,2]
[374036295,1753188654680,-460.0,0.0001949,2]
[374036297,1753188654690,-455.98904119,0.0001949,2]
[374036299,1753188654699,-460.0,0.0001949,2]
[374036301,1753188654709,-460.0,0.0001949,2]
[374036303,1753188654719,-460.0,0.0001949,2]
[374036305,1753188654729,-465.7,0.0001949,2]
[374036307,1753188654738,-913.28,0.0001949,2]
[374036309,1753188654748,-460.0,0.0001949,2]
[374036311,1753188654757,-7033.93,0.00019491,2]
[374036313,1753188654767,-460.0,0.00019491,2]
[374036315,1753188654777,-460.0,0.00019492,2]
[374036317,1753188654786,-638.88,0.00019492,2]
[374036319,1753188654795,-460.0,0.00019493,2]
[374036321,1753188654805,-1226.54,0.00019493,2]
[374036323,1753188654815,-460.0,0.00019493,2]
[374036325,1753188654825,-460.0,0.00019493,2]
[374036327,1753188654834,-460.0,0.00019493,2]
[374036329,1753188654846,-1347.59110799,0.00019555,2]
[374036331,1753188654856,-565.13,0.00019662,2]
[374036333,1753188654867,-505.2,0.00019662,2]
[374036336,1753188654878,-460.0,0.00019662,2]
[374036338,1753188654887,-460.0,0.00019662,2]
[374036339,1753188654896,-460.0,0.00019662,2]
[374036341,1753188654906,-460.0,0.00019662,2]
[374036344,1753188654918,-460.0,0.00019663,2]
[374036346,1753188654927,-460.0,0.00019663,2]
[374036348,1753188654936,-460.0,0.00019663,2]
[374036350,1753188654946,-460.0,0.00019663,2]
[374036352,1753188654955,-460.0,0.00019663,2]
[374036354,1753188654965,-460.0,0.00019663,2]
[374036356,1753188654979,-460.0,0.00019663,2]
[374036358,1753188654988,-430.16976621,0.00019663,2]
[374036360,1753188654997,-460.0,0.00019663,2]
[374036362,1753188655007,-1103.13,0.00019664,2]
[374036363,1753188655016,-490.09,0.00019664,2]
[374036365,1753188655026,-460.0,0.00019664,2]
[374036367,1753188655035,-460.0,0.00019664,2]
[374036369,1753188655044,-460.0,0.00019664,2]
[374036372,1753188655055,-1181.98,0.00019664,2]
[374036374,1753188655065,-460.0,0.00019764,2]
[374036376,1753188655074,-460.0,0.00019764,2]
[374036378,1753188655084,-458.03268078,0.00019764,2]
[374036380,1753188655093,-460.0,0.00019764,2]
[374036382,1753188655102,-585.35500086,0.00019764,2]
[374036383,1753188655113,-465.7,0.00019764,2]
[374036385,1753188655124,-913.28,0.00019764,2]
[374036387,1753188655135,-460.0,0.00019764,2]
[374036390,1753188655145,-7033.93,0.00019765,2]
[374036392,1753188655155,-460.0,0.00019765,2]
[374036394,1753188655165,-460.0,0.00019766,2]
[374036396,1753188655176,-638.88,0.00019766,2]
[374036398,1753188655185,-460.0,0.00019767,2]
[374036400,1753188655195,-1226.54,0.00019767,2]
[374036402,1753188655204,-460.0,0.00019767,2]
[374036404,1753188655214,-460.0,0.00019767,2]
[374036406,1753188655223,-460.0,0.00019767,2]
[374036408,1753188655233,-1347.59110799,0.00019831,2]
[374036410,1753188655242,-392.58580708,0.00019921,2]
[374036412,1753188655251,-565.13,0.00019936,2]
[374036413,1753188655261,-505.2,0.00019936,2]
[374036416,1753188655270,-460.0,0.00019936,2]
[374036418,1753188655280,-524.13,0.00019936,2]
[374036420,1753188655289,-460.0,0.00019936,2]
[374036421,1753188655298,-460.0,0.00019936,2]
[374036423,1753188655308,-239.6,0.00019937,2]
[374036426,1753188655317,-266.89,0.00019937,2]
[374036428,1753188655327,-460.0,0.00019937,2]
[374036430,1753188655337,-460.0,0.00019937,2]
[374036431,1753188655346,-460.0,0.00019937,2]
[374036432,1753188655356,-460.0,0.00019937,2]
[374036433,1753188655365,-460.0,0.00019937,2]
[374036434,1753188655376,-460.0,0.00019937,2]
[374036435,1753188655386,-1103.13,0.00019938,2]
[374036436,1753188655396,-490.09,0.00019938,2]
[374036437,1753188655406,-460.0,0.00019938,2]
[374036439,1753188655417,-460.0,0.00019938,2]
[374036441,1753188655427,-460.0,0.00019938,2]
[374036443,1753188655437,-1181.98,0.00019938,2]
[374036445,1753188655446,-173.634,0.0002,2]
[374036447,1753188655456,-460.0,0.00020038,2]
[374036449,1753188655466,-460.0,0.00020038,2]
[374036451,1753188655475,-460.0,0.00020038,2]
[374036453,1753188655486,-465.7,0.00020038,2]
[374036455,1753188655496,-913.28,0.00020038,2]
[374036457,1753188655506,-460.0,0.00020038,2]
[374036459,1753188655516,-7033.93,0.00020039,2]
[374036461,1753188655526,-460.0,0.00020039,2]
[374036463,1753188655536,-460.0,0.0002004,2]
[374036465,1753188655548,-638.88,0.0002004,2]
[374036467,1753188655557,-460.0,0.00020041,2]
[374036469,1753188655567,-1226.54,0.00020041,2]
[374036471,1753188655577,-546.9,0.00020041,2]
[374036473,1753188655586,-460.0,0.00020041,2]
[374036475,1753188655596,-460.0,0.00020041,2]
[374036477,1753188655605,-1347.59110799,0.00020107,2]
[374036479,1753188655615,-215.0738,0.00020204,2]
[374036481,1753188655624,-565.13,0.0002021,2]
[374036483,1753188655634,-505.2,0.0002021,2]
[374036485,1753188655644,-460.0,0.0002021,2]
[374036487,1753188655653,-460.0,0.0002021,2]
[374036489,1753188655662,-460.0,0.0002021,2]
[374036491,1753188655672,-282.63378705,0.00020211,2]
[374036493,1753188655681,-460.0,0.00020211,2]
[374036495,1753188655691,-460.0,0.00020211,2]
[374036497,1753188655700,-460.0,0.00020211,2]
[374036499,1753188655710,-460.0,0.00020211,2]
[374036501,1753188655719,-460.0,0.00020211,2]
[374036503,1753188655729,-1103.13,0.00020212,2]
[374036505,1753188655740,-490.09,0.00020212,2]
[374036507,1753188655750,-460.0,0.00020212,2]
[374036509,1753188655761,-460.0,0.00020212,2]
[374036511,1753188655770,-460.0,0.00020212,2]
[374036513,1753188655780,-1181.98,0.00020212,2]
[374036515,1753188655789,-460.0,0.00020312,2]
[374036517,1753188655798,-460.0,0.00020312,2]
[374036519,1753188655808,-157.12443675,0.00020312,2]
[374036521,1753188655818,-465.7,0.00020312,2]
[374036523,1753188655830,-913.28,0.00020312,2]
[374036525,1753188655839,-7033.93,0.00020313,2]
[374036527,1753188655848,-460.0,0.00020313,2]
[374036529,1753188655857,-460.0,0.00020314,2]
[374036530,1753188655867,-638.88,0.00020314,2]
[374036532,1753188655877,-460.0,0.00020315,2]
[374036535,1753188655887,-1226.54,0.00020315,2]
[374036536,1753188655896,-460.0,0.00020315,2]
[374036539,1753188655906,-460.0,0.00020315,2]
[374036540,1753188655915,-1347.59110799,0.00020383,3]
[374036543,1753188655925,-565.13,0.00020484,2]
[374036544,1753188655934,-505.2,0.00020484,2]
[374036547,1753188655943,-460.0,0.00020484,2]
[374036548,1753188655953,-460.0,0.00020484,2]
[374036551,1753188655964,-460.0,0.00020484,2]
[374036553,1753188655977,-592.56,0.00020485,2]
[374036555,1753188655986,-460.0,0.00020485,2]
[374036557,1753188655996,-460.0,0.00020485,2]
[374036559,1753188656006,-460.0,0.00020485,2]
[374036561,1753188656015,-460.0,0.00020485,2]
[374036563,1753188656025,-1103.13,0.00020486,2]
[374036565,1753188656034,-490.09,0.00020486,2]
[374036567,1753188656044,-404.68,0.00020486,2]
[374036569,1753188656053,-460.0,0.00020486,2]
[374036571,1753188656063,-460.0,0.00020486,2]
[374036573,1753188656073,-1181.98,0.00020486,2]
[374036575,1753188656083,-297.47,0.00020586,2]
[374036577,1753188656093,-465.7,0.00020586,2]
[374036579,1753188656103,-913.28,0.00020586,2]
[374036581,1753188656113,-7033.93,0.00020587,2]
[374036583,1753188656123,-460.0,0.00020587,2]
[374036585,1753188656133,-460.0,0.00020588,2]
[374036587,1753188656142,-638.88,0.00020588,2]
[374036589,1753188656152,-460.0,0.00020589,2]
[374036591,1753188656162,-1226.54,0.00020589,2]
[374036593,1753188656171,-460.0,0.00020589,2]
[374036595,1753188656181,-460.0,0.00020589,2]
[374036597,1753188656190,-1347.59110799,0.00020659,3]
[374036599,1753188656200,-565.13,0.00020758,2]
[374036601,1753188656209,-505.2,0.00020758,2]
[374036603,1753188656219,-460.0,0.00020758,2]
[374036605,1753188656228,-460.0,0.00020758,2]
[374036607,1753188656237,-460.0,0.00020758,2]
[374036609,1753188656247,-460.0,0.00020759,2]
[374036620,1753188656257,-331.20388353,0.00020759,2]
[374036622,1753188656349,-460.0,0.00020759,2]
[374036624,1753188656358,-460.0,0.00020759,2]
[374036626,1753188656369,-1103.13,0.0002076,2]
[374036628,1753188656379,-490.09,0.0002076,2]
[374036630,1753188656388,-460.0,0.0002076,2]
[374036632,1753188656397,-460.0,0.0002076,2]
[374036634,1753188656407,-1181.98,0.0002076,2]
[374036636,1753188656417,-535.983,0.00020761,2]
[374036638,1753188656427,-465.7,0.0002086,2]
[374036640,1753188656437,-913.28,0.0002086,2]
[374036642,1753188656450,-7033.93,0.00020861,2]
[374036644,1753188656471,-460.0,0.00020861,2]
[374036646,1753188656486,-460.0,0.00020862,2]
[374036648,1753188656496,-638.88,0.00020862,2]
[374036650,1753188656506,-460.0,0.00020863,2]
[374036652,1753188656516,-1226.54,0.00020863,2]
[374036654,1753188656526,-460.0,0.00020863,2]
[374036656,1753188656536,-460.0,0.00020863,2]
[374036658,1753188656546,-1347.59110799,0.00020934,4]
[374036660,1753188656555,-565.13,0.00021032,2]
[374036663,1753188656565,-505.2,0.00021032,2]
[374036665,1753188656578,-460.0,0.00021032,2]
[374036667,1753188656587,-460.0,0.00021032,2]
[374036669,1753188656596,-460.0,0.00021032,2]
[374036671,1753188656606,-460.0,0.00021033,2]
[374036673,1753188656615,-212.33,0.00021033,2]
[374036675,1753188656625,-166.21,0.00021033,2]
[374036677,1753188656634,-1103.13,0.00021034,2]
[374036679,1753188656643,-490.09,0.00021034,2]
[374036681,1753188656653,-460.0,0.00021034,2]
[374036683,1753188656662,-460.0,0.00021034,2]
[374036685,1753188656671,-1181.98,0.00021034,2]
[374036687,1753188656680,-992.61758749,0.00021072,2]
[374036689,1753188656689,-465.7,0.00021134,2]
[374036691,1753188656699,-913.28,0.00021134,2]
[374036693,1753188656708,-7033.93,0.00021135,2]
[374036695,1753188656717,-460.0,0.00021135,2]
[374036697,1753188656727,-460.0,0.00021136,2]
[374036699,1753188656736,-638.88,0.00021136,2]
[374036700,1753188656745,-460.0,0.00021137,2]
[374036703,1753188656754,-1226.54,0.00021137,2]
[374036705,1753188656764,-381.4,0.00021137,2]
[374036707,1753188656774,-460.0,0.00021137,2]
[374036709,1753188656783,-1347.59110799,0.0002121,4]
[374036711,1753188656792,-565.13,0.00021306,2]
[374036713,1753188656801,-505.2,0.00021306,2]
[374036715,1753188656810,-460.0,0.00021306,2]
[374036717,1753188656820,-460.0,0.00021306,2]
[374036719,1753188656829,-460.0,0.00021306,2]
[374036721,1753188656839,-460.0,0.00021307,2]
[374036723,1753188656848,-1103.13,0.00021308,2]
[374036725,1753188656857,-490.09,0.00021308,2]
[374036727,1753188656866,-460.0,0.00021308,2]
[374036729,1753188656877,-460.0,0.00021308,2]
[374036730,1753188656886,-1181.98,0.00021308,2]
[374036733,1753188656895,-465.7,0.00021408,2]
[374036735,1753188656905,-913.28,0.00021408,2]
[374036737,1753188656916,-7033.93,0.00021409,2]